{"text_format":"1","workbook":"xlsx","n_sheets":5,"sheets":["Copyright","General Attributes","Requirements Matrix","F-M Tree","Variables"],"not_rendered":{"charts":0,"images":1,"macros":1,"external_links":0,"defined_names":2,"comments":0,"pivot_tables":0},"unopened":[],"bounds":{"document_bytes":16777216,"sheet_cells":100000,"rows_first":2000,"rows_last":500,"rows_between":2000,"halvings":0,"cell_chars":16384,"cell_head_chars":4096},"cells_cut":0,"cells_raw":0,"read":"whole","date_system":"1900"}

{"sheet":"Copyright","index":0,"n_rows":10,"n_cols":1,"rows_kept":10,"cut":false,"hidden":false,"merged":[[3,0,4,8],[1,0,1,8]]}
[]
["Mechatronic Design - Development Tool "]
[]
["          © 2020 by Vinícius Vigolo, Karol Muñoz Salas, Victor Juliano De Negri \nAvailable under a Creative Commons  Attribution-NonCommercial alike license CC BY-NC 4.0 "]
[]
[]
[]
[]
[]
["The Current Maintainer of this work is Vinícius Vigolo"]

{"sheet":"General Attributes","index":1,"n_rows":52,"n_cols":2,"rows_kept":52,"cut":false,"hidden":false,"merged":[[49,0,51,0],[22,0,23,0],[24,0,26,0],[27,0,28,0],[29,0,30,0],[31,0,33,0],[34,0,35,0],[36,0,37,0],[38,0,39,0],[40,0,41,0],[43,0,44,0],[45,0,46,0],[20,0,21,0],[1,0,5,0],[6,0,8,0],[9,0,11,0],[12,0,13,0],[18,0,19,0]]}
["Requirements category","Examples of user requirements"]
["Functionality","Remove dirty"]
[null,"Harvest cocoa"]
[null,"Wood chipping"]
[null,"Lift weight"]
[null,"Move weight"]
["Ergonomics","Low vibration"]
[null,"Low noise"]
[null,"Ergonomic handling"]
["Aesthetics","Nice look"]
[null,"Simple finish"]
[null,"Robust appearance"]
["Safety","Low risk of accidents"]
[null,"No movable parts exposed"]
["Reliability","Reliable operation"]
["Legality","Comply with security laws"]
["Patentability","Innovative design"]
["Standardization","Comply with applicable standards"]
["Robustness","Be durable"]
[null,"Be robust"]
["Environmental impact","Environment friendly"]
[null,"Do not pollute"]
["Manufacturing","Easy manufacturing"]
[null,"Low cost manufacturing"]
["Assemblability","Suitable component arrangement"]
[null,"Few components"]
[null,"Easy assembly"]
["Maintainability","Easy/quick maintenance"]
[null,"No skilled labor required"]
["Packability","Safe packing"]
[null,"Compact packing"]
["Transportability","Be portable"]
[null,"Compact dimensions"]
[null,"Easy of transportation"]
["Usability","Easy operation"]
[null,"Intuitive operation"]
["Recyclability","Recyclable materials"]
[null,"Recyclable residues"]
["Geometry","Simple geometry components"]
[null,"Suitable dimensions"]
["Kinematics","Smooth movements"]
[null,"Low impact"]
["Force","Don't damage interfacing objects"]
["Energy","Renewable energy"]
[null,"High efficiency"]
["Materials","Non-conductive material"]
[null,"Organic material"]
["Automation","Autonomous operation"]
["Time","Fast operation"]
["Costs","Minimal acquisition cost"]
[null,"Economical operation"]
[null,"Low cost materials"]

{"sheet":"Requirements Matrix","index":2,"n_rows":85,"n_cols":55,"rows_kept":85,"cut":false,"hidden":false,"merged":[[2,41,2,47],[1,39,2,39],[1,40,2,40],[1,34,2,34],[1,35,2,35],[1,36,2,36],[1,37,2,37],[1,38,2,38],[1,29,2,29],[1,30,2,30],[1,31,2,31],[1,32,2,32],[1,33,2,33],[1,24,2,24],[1,25,2,25],[1,26,2,26],[1,27,2,27],[1,28,2,28],[0,0,2,0],[1,1,2,1],[1,2,2,2],[1,3,2,3],[1,4,2,4],[1,5,2,5],[1,6,2,6],[1,7,2,7],[1,8,2,8],[1,9,2,9],[1,10,2,10],[1,11,2,11],[1,12,2,12],[1,13,2,13],[1,14,2,14],[1,20,2,20],[1,21,2,21],[1,22,2,22],[1,23,2,23],[1,15,2,15],[1,16,2,16],[1,17,2,17],[1,18,2,18],[1,19,2,19]]}
["User Requirements (What)",1,2,3,4,5,6,7,8,9,10,11,12,13,14,15,16,17,18,19,20,21,22,23,24,25,26,27,28,29,30,31,32,33,34,35,36,37,38,39,40]
[null,"User requirement A","User requirement B","User requirement C","User requirement D","User requirement E","User requirement F","User requirement G"]
[null,null,null,null,null,null,null,null,null,null,null,null,null,null,null,null,null,null,null,null,null,null,null,null,null,null,null,null,null,null,null,null,null,null,null,null,null,null,null,null,null,"Requirements list"]
["IF",4,4,3,2,4,3,2,null,null,null,null,null,null,null,null,null,null,null,null,null,null,null,null,null,null,null,null,null,null,null,null,null,null,null,null,null,null,null,null,null,"Design requirement (how)","Demand or Wish","Absolute weight (WA)","Relative weight (WR)","Technical/  Economic classfification","Values (How much)","Verification Method"]
[1,1,2,1,2,1,1,2,null,null,null,null,null,null,null,null,null,null,null,null,null,null,null,null,null,null,null,null,null,null,null,null,null,null,null,null,null,null,null,null,null,"Design requirement A",{"$f":"IF(COUNTIF(B45:AO45,\"8\")>=1,\"D\",IF(SUM(B45:AO45)>0,\"W\",\"-\"))","v":"D"},{"$f":"SUMPRODUCT(B5:AO5,$B$4:$AO$4)","v":30},{"$f":"ROUND((AR5/MAX($AR$5:$AR$44))*4,0)","v":3},"T/E","Design requirement A value","Design Requirement A verification method",null,null,null,null,null,null,1]
[2,2,2,2,2,1,1,2,null,null,null,null,null,null,null,null,null,null,null,null,null,null,null,null,null,null,null,null,null,null,null,null,null,null,null,null,null,null,null,null,null,"Design requirement B",{"$f":"IF(COUNTIF(B46:AO46,\"8\")>=1,\"D\",IF(SUM(B46:AO46)>0,\"W\",\"-\"))","v":"D"},{"$f":"SUMPRODUCT(B6:AO6,$B$4:$AO$4)","v":37},{"$f":"ROUND((AR6/MAX($AR$5:$AR$44))*4,0)","v":4},"T","Design requirement B value","Design Requirement B verification method",null,null,null,null,null,null,2]
[3,2,1,1,1,2,2,1,null,null,null,null,null,null,null,null,null,null,null,null,null,null,null,null,null,null,null,null,null,null,null,null,null,null,null,null,null,null,null,null,null,"Design requirement C","D",33,{"$f":"ROUND((AR7/MAX($AR$5:$AR$44))*4,0)","v":3},"E","Design requirement C value","Design Requirement C verification method",null,null,null,null,null,null,3]
[4,2,2,2,2,2,1,2,null,null,null,null,null,null,null,null,null,null,null,null,null,null,null,null,null,null,null,null,null,null,null,null,null,null,null,null,null,null,null,null,null,"Design requirement D","D",41,{"$f":"ROUND((AR8/MAX($AR$5:$AR$44))*4,0)","v":4},"T","Design requirement D value","Design Requirement D verification method",null,null,null,null,null,null,4]
[5,2,2,1,2,1,2,2,null,null,null,null,null,null,null,null,null,null,null,null,null,null,null,null,null,null,null,null,null,null,null,null,null,null,null,null,null,null,null,null,null,"Design requirement E","D",37,{"$f":"ROUND((AR9/MAX($AR$5:$AR$44))*4,0)","v":4},"T/E","Design requirement E value","Design Requirement E verification method"]
[6,null,null,null,null,null,null,null,null,null,null,null,null,null,null,null,null,null,null,null,null,null,null,null,null,null,null,null,null,null,null,null,null,null,null,null,null,null,null,null,null,null,"-",0,{"$f":"ROUND((AR10/MAX($AR$5:$AR$44))*4,0)","v":0}]
[7,null,null,null,null,null,null,null,null,null,null,null,null,null,null,null,null,null,null,null,null,null,null,null,null,null,null,null,null,null,null,null,null,null,null,null,null,null,null,null,null,null,"-",0,0]
[8,null,null,null,null,null,null,null,null,null,null,null,null,null,null,null,null,null,null,null,null,null,null,null,null,null,null,null,null,null,null,null,null,null,null,null,null,null,null,null,null,null,"-",0,0]
[9,null,null,null,null,null,null,null,null,null,null,null,null,null,null,null,null,null,null,null,null,null,null,null,null,null,null,null,null,null,null,null,null,null,null,null,null,null,null,null,null,null,"-",0,0]
[10,null,null,null,null,null,null,null,null,null,null,null,null,null,null,null,null,null,null,null,null,null,null,null,null,null,null,null,null,null,null,null,null,null,null,null,null,null,null,null,null,null,"-",0,0]
[11,null,null,null,null,null,null,null,null,null,null,null,null,null,null,null,null,null,null,null,null,null,null,null,null,null,null,null,null,null,null,null,null,null,null,null,null,null,null,null,null,null,"-",0,0]
[12,null,null,null,null,null,null,null,null,null,null,null,null,null,null,null,null,null,null,null,null,null,null,null,null,null,null,null,null,null,null,null,null,null,null,null,null,null,null,null,null,null,"-",0,0]
[13,null,null,null,null,null,null,null,null,null,null,null,null,null,null,null,null,null,null,null,null,null,null,null,null,null,null,null,null,null,null,null,null,null,null,null,null,null,null,null,null,null,"-",0,0]
[14,null,null,null,null,null,null,null,null,null,null,null,null,null,null,null,null,null,null,null,null,null,null,null,null,null,null,null,null,null,null,null,null,null,null,null,null,null,null,null,null,null,"-",0,0,null,null,null,null,null,null,null,null,null,0]
[15,null,null,null,null,null,null,null,null,null,null,null,null,null,null,null,null,null,null,null,null,null,null,null,null,null,null,null,null,null,null,null,null,null,null,null,null,null,null,null,null,null,"-",0,0,null,null,null,null,null,null,null,null,null,1]
[16,null,null,null,null,null,null,null,null,null,null,null,null,null,null,null,null,null,null,null,null,null,null,null,null,null,null,null,null,null,null,null,null,null,null,null,null,null,null,null,null,null,"-",0,0,null,null,null,null,null,null,null,null,null,2]
[17,null,null,null,null,null,null,null,null,null,null,null,null,null,null,null,null,null,null,null,null,null,null,null,null,null,null,null,null,null,null,null,null,null,null,null,null,null,null,null,null,null,"-",0,0]
[18,null,null,null,null,null,null,null,null,null,null,null,null,null,null,null,null,null,null,null,null,null,null,null,null,null,null,null,null,null,null,null,null,null,null,null,null,null,null,null,null,null,"-",0,0]
[19,null,null,null,null,null,null,null,null,null,null,null,null,null,null,null,null,null,null,null,null,null,null,null,null,null,null,null,null,null,null,null,null,null,null,null,null,null,null,null,null,null,"-",0,0]
[20,null,null,null,null,null,null,null,null,null,null,null,null,null,null,null,null,null,null,null,null,null,null,null,null,null,null,null,null,null,null,null,null,null,null,null,null,null,null,null,null,null,"-",0,0]
[21,null,null,null,null,null,null,null,null,null,null,null,null,null,null,null,null,null,null,null,null,null,null,null,null,null,null,null,null,null,null,null,null,null,null,null,null,null,null,null,null,null,"-",0,0]
[22,null,null,null,null,null,null,null,null,null,null,null,null,null,null,null,null,null,null,null,null,null,null,null,null,null,null,null,null,null,null,null,null,null,null,null,null,null,null,null,null,null,"-",0,0]
[23,null,null,null,null,null,null,null,null,null,null,null,null,null,null,null,null,null,null,null,null,null,null,null,null,null,null,null,null,null,null,null,null,null,null,null,null,null,null,null,null,null,"-",0,0]
[24,null,null,null,null,null,null,null,null,null,null,null,null,null,null,null,null,null,null,null,null,null,null,null,null,null,null,null,null,null,null,null,null,null,null,null,null,null,null,null,null,null,"-",0,0]
[25,null,null,null,null,null,null,null,null,null,null,null,null,null,null,null,null,null,null,null,null,null,null,null,null,null,null,null,null,null,null,null,null,null,null,null,null,null,null,null,null,null,"-",0,0]
[26,null,null,null,null,null,null,null,null,null,null,null,null,null,null,null,null,null,null,null,null,null,null,null,null,null,null,null,null,null,null,null,null,null,null,null,null,null,null,null,null,null,"-",0,0]
[27,null,null,null,null,null,null,null,null,null,null,null,null,null,null,null,null,null,null,null,null,null,null,null,null,null,null,null,null,null,null,null,null,null,null,null,null,null,null,null,null,null,"-",0,0]
[28,null,null,null,null,null,null,null,null,null,null,null,null,null,null,null,null,null,null,null,null,null,null,null,null,null,null,null,null,null,null,null,null,null,null,null,null,null,null,null,null,null,"-",0,0,null,null,null,null,null,null,null,null,null,"E"]
[29,null,null,null,null,null,null,null,null,null,null,null,null,null,null,null,null,null,null,null,null,null,null,null,null,null,null,null,null,null,null,null,null,null,null,null,null,null,null,null,null,null,"-",0,0,null,null,null,null,null,null,null,null,null,"T"]
[30,null,null,null,null,null,null,null,null,null,null,null,null,null,null,null,null,null,null,null,null,null,null,null,null,null,null,null,null,null,null,null,null,null,null,null,null,null,null,null,null,null,"-",0,0,null,null,null,null,null,null,null,null,null,"T/E"]
[31,null,null,null,null,null,null,null,null,null,null,null,null,null,null,null,null,null,null,null,null,null,null,null,null,null,null,null,null,null,null,null,null,null,null,null,null,null,null,null,null,null,"-",0,0]
[32,null,null,null,null,null,null,null,null,null,null,null,null,null,null,null,null,null,null,null,null,null,null,null,null,null,null,null,null,null,null,null,null,null,null,null,null,null,null,null,null,null,"-",0,0]
[33,null,null,null,null,null,null,null,null,null,null,null,null,null,null,null,null,null,null,null,null,null,null,null,null,null,null,null,null,null,null,null,null,null,null,null,null,null,null,null,null,null,"-",0,0]
[34,null,null,null,null,null,null,null,null,null,null,null,null,null,null,null,null,null,null,null,null,null,null,null,null,null,null,null,null,null,null,null,null,null,null,null,null,null,null,null,null,null,"-",0,0]
[35,null,null,null,null,null,null,null,null,null,null,null,null,null,null,null,null,null,null,null,null,null,null,null,null,null,null,null,null,null,null,null,null,null,null,null,null,null,null,null,null,null,"-",0,0]
[36,null,null,null,null,null,null,null,null,null,null,null,null,null,null,null,null,null,null,null,null,null,null,null,null,null,null,null,null,null,null,null,null,null,null,null,null,null,null,null,null,null,"-",0,0]
[37,null,null,null,null,null,null,null,null,null,null,null,null,null,null,null,null,null,null,null,null,null,null,null,null,null,null,null,null,null,null,null,null,null,null,null,null,null,null,null,null,null,"-",0,0]
[38,null,null,null,null,null,null,null,null,null,null,null,null,null,null,null,null,null,null,null,null,null,null,null,null,null,null,null,null,null,null,null,null,null,null,null,null,null,null,null,null,null,"-",0,0]
[39,null,null,null,null,null,null,null,null,null,null,null,null,null,null,null,null,null,null,null,null,null,null,null,null,null,null,null,null,null,null,null,null,null,null,null,null,null,null,null,null,null,"-",0,0]
[40,null,null,null,null,null,null,null,null,null,null,null,null,null,null,null,null,null,null,null,null,null,null,null,null,null,null,null,null,null,null,null,null,null,null,null,null,null,null,null,null,null,"-",0,0]
[null,{"$f":"B5*$B$4","v":4},{"$f":"C5*$C$4","v":8},{"$f":"D5*$D$4","v":3},{"$f":"E5*$E$4","v":4},{"$f":"F5*$F$4","v":4},{"$f":"G5*$G$4","v":3},{"$f":"H5*$H$4","v":4},{"$f":"I5*$I$4","v":0},{"$f":"J5*$J$4","v":0},{"$f":"K5*$K$4","v":0},{"$f":"L5*$L$4","v":0},{"$f":"M5*$M$4","v":0},{"$f":"N5*$N$4","v":0},{"$f":"O5*$O$4","v":0},{"$f":"P5*$P$4","v":0},{"$f":"Q5*$Q$4","v":0},{"$f":"R5*$R$4","v":0},{"$f":"S5*$S$4","v":0},{"$f":"T5*$T$4","v":0},{"$f":"U5*$U$4","v":0},{"$f":"V5*$V$4","v":0},{"$f":"W5*$W$4","v":0},{"$f":"X5*$X$4","v":0},{"$f":"Y5*$Y$4","v":0},{"$f":"Z5*$Z$4","v":0},{"$f":"AA5*$AA$4","v":0},{"$f":"AB5*$AB$4","v":0},{"$f":"AC5*$AC$4","v":0},{"$f":"AD5*$AD$4","v":0},{"$f":"AE5*$AE$4","v":0},{"$f":"AF5*$AF$4","v":0},{"$f":"AG5*$AG$4","v":0},{"$f":"AH5*$AH$4","v":0},{"$f":"AI5*$AI$4","v":0},{"$f":"AJ5*$AJ$4","v":0},{"$f":"AK5*$AK$4","v":0},{"$f":"AL5*$AL$4","v":0},{"$f":"AM5*$AM$4","v":0},{"$f":"AN5*$AN$4","v":0},{"$f":"AO5*$AO$4","v":0}]
[null,{"$f":"B6*$B$4","v":8},{"$f":"C6*$C$4","v":8},{"$f":"D6*$D$4","v":6},{"$f":"E6*$E$4","v":4},{"$f":"F6*$F$4","v":4},{"$f":"G6*$G$4","v":3},{"$f":"H6*$H$4","v":4},{"$f":"I6*$I$4","v":0},{"$f":"J6*$J$4","v":0},{"$f":"K6*$K$4","v":0},{"$f":"L6*$L$4","v":0},{"$f":"M6*$M$4","v":0},{"$f":"N6*$N$4","v":0},{"$f":"O6*$O$4","v":0},{"$f":"P6*$P$4","v":0},{"$f":"Q6*$Q$4","v":0},{"$f":"R6*$R$4","v":0},{"$f":"S6*$S$4","v":0},{"$f":"T6*$T$4","v":0},{"$f":"U6*$U$4","v":0},{"$f":"V6*$V$4","v":0},{"$f":"W6*$W$4","v":0},{"$f":"X6*$X$4","v":0},{"$f":"Y6*$Y$4","v":0},{"$f":"Z6*$Z$4","v":0},{"$f":"AA6*$AA$4","v":0},{"$f":"AB6*$AB$4","v":0},{"$f":"AC6*$AC$4","v":0},{"$f":"AD6*$AD$4","v":0},{"$f":"AE6*$AE$4","v":0},{"$f":"AF6*$AF$4","v":0},{"$f":"AG6*$AG$4","v":0},{"$f":"AH6*$AH$4","v":0},{"$f":"AI6*$AI$4","v":0},{"$f":"AJ6*$AJ$4","v":0},{"$f":"AK6*$AK$4","v":0},{"$f":"AL6*$AL$4","v":0},{"$f":"AM6*$AM$4","v":0},{"$f":"AN6*$AN$4","v":0},{"$f":"AO6*$AO$4","v":0}]
[null,8,4,3,2,8,6,2,0,0,0,0,0,0,0,0,0,0,0,0,0,0,0,0,0,0,0,0,0,0,0,0,0,0,0,0,0,0,0,0,0]
[null,8,8,6,4,8,3,4,0,0,0,0,0,0,0,0,0,0,0,0,0,0,0,0,0,0,0,0,0,0,0,0,0,0,0,0,0,0,0,0,0]
[null,8,8,3,4,4,6,4,0,0,0,0,0,0,0,0,0,0,0,0,0,0,0,0,0,0,0,0,0,0,0,0,0,0,0,0,0,0,0,0,0]
[null,0,0,0,0,0,0,0,0,0,0,0,0,0,0,0,0,0,0,0,0,0,0,0,0,0,0,0,0,0,0,0,0,0,0,0,0,0,0,0,0]
[null,0,0,0,0,0,0,0,0,0,0,0,0,0,0,0,0,0,0,0,0,0,0,0,0,0,0,0,0,0,0,0,0,0,0,0,0,0,0,0,0]
[null,0,0,0,0,0,0,0,0,0,0,0,0,0,0,0,0,0,0,0,0,0,0,0,0,0,0,0,0,0,0,0,0,0,0,0,0,0,0,0,0]
[null,0,0,0,0,0,0,0,0,0,0,0,0,0,0,0,0,0,0,0,0,0,0,0,0,0,0,0,0,0,0,0,0,0,0,0,0,0,0,0,0]
[null,0,0,0,0,0,0,0,0,0,0,0,0,0,0,0,0,0,0,0,0,0,0,0,0,0,0,0,0,0,0,0,0,0,0,0,0,0,0,0,0]
[null,0,0,0,0,0,0,0,0,0,0,0,0,0,0,0,0,0,0,0,0,0,0,0,0,0,0,0,0,0,0,0,0,0,0,0,0,0,0,0,0]
[null,0,0,0,0,0,0,0,0,0,0,0,0,0,0,0,0,0,0,0,0,0,0,0,0,0,0,0,0,0,0,0,0,0,0,0,0,0,0,0,0]
[null,0,0,0,0,0,0,0,0,0,0,0,0,0,0,0,0,0,0,0,0,0,0,0,0,0,0,0,0,0,0,0,0,0,0,0,0,0,0,0,0]
[null,0,0,0,0,0,0,0,0,0,0,0,0,0,0,0,0,0,0,0,0,0,0,0,0,0,0,0,0,0,0,0,0,0,0,0,0,0,0,0,0]
[null,0,0,0,0,0,0,0,0,0,0,0,0,0,0,0,0,0,0,0,0,0,0,0,0,0,0,0,0,0,0,0,0,0,0,0,0,0,0,0,0]
[null,0,0,0,0,0,0,0,0,0,0,0,0,0,0,0,0,0,0,0,0,0,0,0,0,0,0,0,0,0,0,0,0,0,0,0,0,0,0,0,0]
[null,0,0,0,0,0,0,0,0,0,0,0,0,0,0,0,0,0,0,0,0,0,0,0,0,0,0,0,0,0,0,0,0,0,0,0,0,0,0,0,0]
[null,0,0,0,0,0,0,0,0,0,0,0,0,0,0,0,0,0,0,0,0,0,0,0,0,0,0,0,0,0,0,0,0,0,0,0,0,0,0,0,0]
[null,0,0,0,0,0,0,0,0,0,0,0,0,0,0,0,0,0,0,0,0,0,0,0,0,0,0,0,0,0,0,0,0,0,0,0,0,0,0,0,0]
[null,0,0,0,0,0,0,0,0,0,0,0,0,0,0,0,0,0,0,0,0,0,0,0,0,0,0,0,0,0,0,0,0,0,0,0,0,0,0,0,0]
[null,0,0,0,0,0,0,0,0,0,0,0,0,0,0,0,0,0,0,0,0,0,0,0,0,0,0,0,0,0,0,0,0,0,0,0,0,0,0,0,0]
[null,0,0,0,0,0,0,0,0,0,0,0,0,0,0,0,0,0,0,0,0,0,0,0,0,0,0,0,0,0,0,0,0,0,0,0,0,0,0,0,0]
[null,0,0,0,0,0,0,0,0,0,0,0,0,0,0,0,0,0,0,0,0,0,0,0,0,0,0,0,0,0,0,0,0,0,0,0,0,0,0,0,0]
[null,0,0,0,0,0,0,0,0,0,0,0,0,0,0,0,0,0,0,0,0,0,0,0,0,0,0,0,0,0,0,0,0,0,0,0,0,0,0,0,0]
[null,0,0,0,0,0,0,0,0,0,0,0,0,0,0,0,0,0,0,0,0,0,0,0,0,0,0,0,0,0,0,0,0,0,0,0,0,0,0,0,0]
[null,0,0,0,0,0,0,0,0,0,0,0,0,0,0,0,0,0,0,0,0,0,0,0,0,0,0,0,0,0,0,0,0,0,0,0,0,0,0,0,0]
[null,0,0,0,0,0,0,0,0,0,0,0,0,0,0,0,0,0,0,0,0,0,0,0,0,0,0,0,0,0,0,0,0,0,0,0,0,0,0,0,0]
[null,0,0,0,0,0,0,0,0,0,0,0,0,0,0,0,0,0,0,0,0,0,0,0,0,0,0,0,0,0,0,0,0,0,0,0,0,0,0,0,0]
[null,0,0,0,0,0,0,0,0,0,0,0,0,0,0,0,0,0,0,0,0,0,0,0,0,0,0,0,0,0,0,0,0,0,0,0,0,0,0,0,0]
[null,0,0,0,0,0,0,0,0,0,0,0,0,0,0,0,0,0,0,0,0,0,0,0,0,0,0,0,0,0,0,0,0,0,0,0,0,0,0,0,0]
[null,0,0,0,0,0,0,0,0,0,0,0,0,0,0,0,0,0,0,0,0,0,0,0,0,0,0,0,0,0,0,0,0,0,0,0,0,0,0,0,0]
[null,0,0,0,0,0,0,0,0,0,0,0,0,0,0,0,0,0,0,0,0,0,0,0,0,0,0,0,0,0,0,0,0,0,0,0,0,0,0,0,0]
[null,0,0,0,0,0,0,0,0,0,0,0,0,0,0,0,0,0,0,0,0,0,0,0,0,0,0,0,0,0,0,0,0,0,0,0,0,0,0,0,0]
[null,0,0,0,0,0,0,0,0,0,0,0,0,0,0,0,0,0,0,0,0,0,0,0,0,0,0,0,0,0,0,0,0,0,0,0,0,0,0,0,0]
[null,0,0,0,0,0,0,0,0,0,0,0,0,0,0,0,0,0,0,0,0,0,0,0,0,0,0,0,0,0,0,0,0,0,0,0,0,0,0,0,0]
[null,0,0,0,0,0,0,0,0,0,0,0,0,0,0,0,0,0,0,0,0,0,0,0,0,0,0,0,0,0,0,0,0,0,0,0,0,0,0,0,0]
[null,0,0,0,0,0,0,0,0,0,0,0,0,0,0,0,0,0,0,0,0,0,0,0,0,0,0,0,0,0,0,0,0,0,0,0,0,0,0,0,0]
[null,0,0,0,0,0,0,0,0,0,0,0,0,0,0,0,0,0,0,0,0,0,0,0,0,0,0,0,0,0,0,0,0,0,0,0,0,0,0,0,0]
[null,0,0,0,0,0,0,0,0,0,0,0,0,0,0,0,0,0,0,0,0,0,0,0,0,0,0,0,0,0,0,0,0,0,0,0,0,0,0,0,0]
[null,0,0,0,0,0,0,0,0,0,0,0,0,0,0,0,0,0,0,0,0,0,0,0,0,0,0,0,0,0,0,0,0,0,0,0,0,0,0,0,0]
["Status",{"$f":"IF(B4<>\"\", IF(COUNTIF(B5:B44,2)>=1,\"OK\",\"Error\"),\"-\")","v":"OK"},{"$f":"IF(C4<>\"\", IF(COUNTIF(C5:C44,2)>=1,\"OK\",\"Error\"),\"-\")","v":"OK"},"OK","OK","OK","OK","OK","-","-","-","-","-","-","-","-","-","-","-","-","-","-","-","-","-","-","-","-","-","-","-","-","-","-","-","-","-","-","-","-","-"]

{"sheet":"F-M Tree","index":3,"n_rows":0,"n_cols":0,"rows_kept":0,"cut":false,"hidden":false,"merged":[]}

{"sheet":"Variables","index":4,"n_rows":21,"n_cols":3,"rows_kept":21,"cut":false,"hidden":true,"merged":[]}
["Nlevel",null,"Variables that correlates the function and the subseqyent mean. The column is the mean number of the function shape and the central number of the function name is the precedent mean number"]
[1,null,"Level 2"]
[null,null,"Level 3"]
[null,null,"Level 4"]
[null,null,"Level 5"]
[null,null,"Level 6"]
[null,null,"Level 7"]
[null,null,"Level 8"]
[null,null,"Level 9"]
[null,null,"Level 10"]
[null,null,"Level 11"]
[null,null,"Level 12"]
[null,null,"Level 13"]
[null,null,"Level 14"]
[null,null,"Level 15"]
[null,null,"Level 16"]
[null,null,"Level 17"]
[null,null,"Level 18"]
[null,null,"Level 19"]
[null,null,"Level 20"]
[null,null,"Mean number"]